fUST/lending_fUST_20251213
["ID","MTS","AMOUNT","RATE_DAILY","PERIOD"]
[398404664,1765617049899,-500.0,0.00027397,3]
[398404666,1765617049910,-1544.08,0.00027397,3]
[398404668,1765617049923,-500.0,0.00027397,3]
[398404670,1765617049932,-500.0,0.00027397,3]
[398404672,1765617049941,-454.59149432,0.00027397,3]
[398404674,1765617049951,-500.0,0.00027397,3]
[398404676,1765617049960,-500.0,0.00027397,3]
[398404678,1765617049969,-964.54,0.00027397,3]
[398404680,1765617049978,-500.0,0.00027397,3]
[398404682,1765617049987,-500.0,0.00027397,3]
[398404684,1765617049996,-2211.52,0.00027397,3]
[398404686,1765617050005,-500.0,0.00027397,3]
[398404687,1765617050014,-500.0,0.00027397,3]
[398404690,1765617050024,-500.0,0.00027397,3]
[398404691,1765617050034,-715.72,0.00027397,3]
[398404693,1765617050044,-500.0,0.00027397,3]
[398404695,1765617050053,-500.0,0.00027397,3]
[398404697,1765617050063,-500.0,0.00027397,3]
[398404699,1765617050073,-500.0,0.00027397,3]
[398404701,1765617050082,-644.23,0.00027397,3]
[398404703,1765617050091,-500.0,0.00027397,3]
[398404705,1765617050100,-500.0,0.00027397,3]
[398404707,1765617050110,-500.0,0.00027397,3]
[398404709,1765617050120,-500.0,0.00027397,3]
[398404711,1765617050129,-1282.87,0.00027397,3]
[398404713,1765617050140,-562.72,0.00027397,3]
[398404715,1765617050149,-317.98629371,0.00027397,3]
[398404717,1765617050159,-749.99,0.00027397,3]
[398404719,1765617050169,-500.0,0.00027397,3]
[398404721,1765617050178,-1878.73,0.00027397,3]
[398404723,1765617050187,-500.0,0.00027397,3]
[398404725,1765617050196,-500.0,0.00027397,3]
[398404727,1765617050206,-500.0,0.00027397,3]
[398404729,1765617050216,-500.0,0.00027397,3]
[398404731,1765617050226,-911.18,0.00027397,3]
[398404733,1765617050236,-1507.87,0.00027397,3]
[398404735,1765617050245,-500.0,0.00027397,3]
[398404737,1765617050254,-690.11,0.00027397,3]
[398404739,1765617050263,-927.44,0.00027397,3]
[398404740,1765617050272,-500.0,0.00027397,3]
[398404742,1765617050281,-500.0,0.00027397,3]
[398404744,1765617050291,-1770.22,0.00027397,3]
[398404746,1765617050300,-750.26,0.00027397,3]
[398404748,1765617050308,-500.0,0.00027397,3]
[398404750,1765617050318,-500.0,0.00027397,3]
[398404752,1765617050329,-787.25,0.00027397,3]
[398404754,1765617050338,-545.83,0.00027397,3]
[398404756,1765617050348,-863.65,0.00027397,3]
[398404758,1765617050358,-500.0,0.00027397,3]
[398404760,1765617050368,-500.0,0.00027397,3]
[398404762,1765617050378,-500.0,0.00027397,3]
[398404764,1765617050388,-500.0,0.00027397,3]
[398404766,1765617050397,-1287.94,0.00027397,3]
[398404768,1765617050407,-500.0,0.00027397,3]
[398404770,1765617050418,-2003.21,0.00027397,3]
[398404772,1765617050428,-500.0,0.00027397,2]
[398404774,1765617050437,-500.0,0.00027397,3]
[398404776,1765617050447,-617.17543383,0.00027397,3]
[398404778,1765617050457,-500.0,0.00027397,3]
[398404780,1765617050466,-500.0,0.00027397,3]
[398404782,1765617050476,-500.0,0.00027397,3]
[398404783,1765617050486,-757.47,0.00027397,3]
[398404785,1765617050496,-1230.98,0.00027397,3]
[398404787,1765617050506,-500.0,0.00027397,3]
[398404789,1765617050517,-742.57,0.00027397,3]
[398404791,1765617050528,-500.0,0.00027397,3]
[398404793,1765617050539,-1040.17,0.00027397,3]
[398404795,1765617050549,-1961.04,0.00027397,3]
[398404797,1765617050559,-500.0,0.00027397,3]
[398404800,1765617050570,-500.0,0.00027397,3]
[398404801,1765617050581,-1227.64,0.00027397,3]
[398404803,1765617050591,-500.0,0.00027397,3]
[398404805,1765617050602,-640.98335069,0.00027397,3]
[398404807,1765617050611,-500.0,0.00027397,3]
[398404809,1765617050621,-500.0,0.00027397,3]
[398404811,1765617050630,-804.14,0.00027397,3]
[398404813,1765617050639,-1602.27,0.00027397,3]
[398404815,1765617050650,-2358.14,0.00027397,3]
[398404817,1765617050660,-500.0,0.00027397,3]
[398404819,1765617050669,-500.0,0.00027397,3]
[398404821,1765617050679,-500.0,0.00027397,3]
[398404823,1765617050688,-500.0,0.00027397,3]
[398404824,1765617050698,-237.12879329,0.00027397,3]
[398404825,1765617050707,-500.0,0.00027397,3]
[398404826,1765617050716,-500.0,0.00027397,3]
[398404827,1765617050726,-500.0,0.00027397,3]
[398404828,1765617050735,-500.0,0.00027397,3]
[398404829,1765617050744,-500.0,0.00027397,3]
[398404830,1765617050753,-500.0,0.00027397,3]
[398404831,1765617050762,-758.05,0.00027397,3]
[398404832,1765617050771,-2188.95,0.00027397,3]
[398404833,1765617050780,-500.0,0.00027397,3]
[398404834,1765617050789,-500.0,0.00027397,3]
[398404835,1765617050798,-500.0,0.00027397,3]
[398404836,1765617050808,-500.0,0.00027397,3]
[398404837,1765617050817,-1467.28,0.00027397,3]
[398404838,1765617050826,-643.24,0.00027397,3]
[398404839,1765617050835,-500.0,0.00027397,3]
[398404840,1765617050845,-1893.58,0.00027397,3]
[398404841,1765617050854,-500.0,0.00027397,3]
[398404842,1765617050863,-2044.9,0.00027397,3]
[398404843,1765617050873,-500.0,0.00027397,3]
[398404844,1765617050882,-500.0,0.00027397,3]
[398404845,1765617050892,-478.04655228,0.00027397,3]
[398404846,1765617050901,-500.0,0.00027397,3]
[398404847,1765617050910,-500.0,0.00027397,3]
[398404848,1765617050925,-482.21921446,0.00027397,3]
[398404849,1765617050934,-500.0,0.00027397,3]
[398404850,1765617050943,-500.0,0.00027397,3]
[398404851,1765617050952,-500.0,0.00027397,3]
[398404852,1765617050962,-882.53,0.00027397,3]
[398404854,1765617050972,-797.56,0.00027397,3]
[398404856,1765617050981,-500.0,0.00027397,3]
[398404858,1765617050990,-500.0,0.00027397,3]
[398404860,1765617050999,-2394.02,0.00027397,3]
[398404861,1765617051008,-500.0,0.00027397,3]
[398404863,1765617051017,-500.0,0.00027397,3]
[398404865,1765617051026,-500.0,0.00027397,3]
[398404867,1765617051035,-500.0,0.00027397,3]
[398404869,1765617051044,-2469.26,0.00027397,3]
[398404871,1765617051054,-725.09,0.00027397,3]
[398404873,1765617051063,-2460.35,0.00027397,3]
[398404875,1765617051072,-500.0,0.00027397,3]
[398404877,1765617051082,-621.99,0.00027397,3]
[398404879,1765617051092,-500.0,0.00027397,3]
[398404881,1765617051101,-500.0,0.00027397,3]
[398404883,1765617051110,-500.0,0.00027397,3]
[398404885,1765617051120,-500.0,0.00027397,3]
[398404887,1765617051129,-1840.29,0.00027397,3]
[398404889,1765617051139,-500.0,0.00027397,3]
[398404891,1765617051148,-500.0,0.00027397,3]
[398404893,1765617051158,-500.0,0.00027397,3]
[398404895,1765617051167,-500.26002,0.00027397,3]
[398404897,1765617051176,-2395.32,0.00027397,3]
[398404899,1765617051186,-539.27,0.00027397,3]
[398404901,1765617051195,-458.93956447,0.00027397,3]
[398404903,1765617051205,-513.63174199,0.00027397,3]
[398404905,1765617051214,-1618.61,0.00027397,3]
[398404907,1765617051223,-1165.82,0.00027397,3]
[398404909,1765617051232,-500.0,0.00027397,3]
[398404911,1765617051241,-2371.07,0.00027397,3]
[398404927,1765617051376,-502.43657454,0.00027397,3]
[398404929,1765617051386,-500.0,0.00027397,3]
[398404931,1765617051397,-1656.77,0.00027397,3]
[398404933,1765617051406,-2139.92,0.00027397,3]
[398404934,1765617051416,-500.0,0.00027397,3]
[398404937,1765617051429,-2033.6,0.00027397,3]
[398404939,1765617051438,-500.0,0.00027397,3]
[398404940,1765617051448,-500.0,0.00027397,3]
[398404943,1765617051458,-1956.59,0.00027397,3]
[398404944,1765617051467,-500.0,0.00027397,3]
[398404946,1765617051478,-2211.14,0.00027397,3]
[398404948,1765617051487,-1222.88,0.00027397,3]
[398404950,1765617051496,-1292.66,0.00027397,3]
[398404952,1765617051505,-1054.22,0.00027397,3]
[398404954,1765617051514,-500.0,0.00027397,3]
[398404956,1765617051524,-2063.19,0.00027397,3]
[398404958,1765617051534,-500.0,0.00027397,3]
[398404960,1765617051543,-500.0,0.00027397,3]
[398404962,1765617051553,-546.02,0.00027397,3]
[398404964,1765617051563,-500.0,0.00027397,3]
[398404967,1765617051572,-1532.63,0.00027397,3]
[398404969,1765617051584,-2352.93,0.00027397,3]
[398404971,1765617051593,-500.0,0.00027397,3]
[398404972,1765617051602,-500.0,0.00027397,3]
[398404975,1765617051612,-500.39453486,0.00027397,3]
[398404976,1765617051621,-500.0,0.00027397,3]
[398404978,1765617051632,-870.12,0.00027397,2]
[398404980,1765617051642,-500.0,0.00027397,3]
[398404982,1765617051651,-500.0,0.00027397,3]
[398404984,1765617051660,-500.0,0.00027397,3]
[398404986,1765617051669,-576.15,0.00027397,3]
[398404988,1765617051679,-500.0,0.00027397,3]
[398404990,1765617051688,-500.0,0.00027397,3]
[398404992,1765617051698,-500.0,0.00027397,3]
[398404994,1765617051707,-500.0,0.00027397,3]
[398404996,1765617051716,-500.0,0.00027397,3]
[398404998,1765617051725,-2186.76,0.00027397,3]
[398405000,1765617051735,-500.0,0.00027397,3]
[398405002,1765617051744,-500.0,0.00027397,3]
[398405004,1765617051752,-500.0,0.00027397,3]
[398405006,1765617051762,-1646.45,0.00027397,3]
[398405008,1765617051771,-500.0,0.00027397,3]
[398405010,1765617051781,-2156.34,0.00027397,3]
[398405012,1765617051790,-1000.0,0.00027397,2]
[398405014,1765617051800,-500.0,0.00027397,3]
[398405016,1765617051808,-500.0,0.00027397,3]
[398405018,1765617051818,-500.0,0.00027397,3]
[398405020,1765617051827,-500.0,0.00027397,3]
[398405022,1765617051837,-500.0,0.00027397,3]
[398405024,1765617051846,-2095.52,0.00027397,3]
[398405026,1765617051859,-500.0,0.00027397,3]
[398405027,1765617051868,-2472.36,0.00027397,3]
[398405029,1765617051876,-504.3,0.00027397,3]
[398405031,1765617051885,-1669.5,0.00027397,3]
[398405032,1765617051894,-1173.99,0.00027397,3]
[398405033,1765617051903,-500.0,0.00027397,3]
[398405034,1765617051914,-500.0,0.00027397,3]
[398405035,1765617051924,-500.0,0.00027397,3]
[398405036,1765617051933,-8313.59,0.00027397,3]
[398405037,1765617051944,-2189.26,0.00027397,3]
[398405038,1765617051953,-500.0,0.00027397,3]
[398405039,1765617051963,-311.76247244,0.00027397,3]
[398405040,1765617051973,-500.0,0.00027397,3]
[398405041,1765617051982,-507.0073274,0.00027397,3]
[398405042,1765617051992,-535.1215176,0.00027397,3]
[398405043,1765617052001,-756.99,0.00027397,3]
[398405044,1765617052011,-500.0,0.00027397,3]
[398405045,1765617052020,-500.0,0.00027397,3]
[398405046,1765617052030,-500.0,0.00027397,3]
[398405047,1765617052039,-341.33,0.00027397,3]
[398405048,1765617052048,-500.0,0.00027397,3]
[398405049,1765617052057,-604.67434487,0.00027397,3]
[398405050,1765617052067,-2196.27,0.00027397,3]
[398405051,1765617052076,-500.0,0.00027397,3]
[398405052,1765617052085,-2077.28,0.00027397,3]
[398405053,1765617052094,-500.0,0.00027397,3]
[398405054,1765617052103,-500.0,0.00027397,3]
[398405055,1765617052112,-500.0,0.00027397,3]
[398405056,1765617052121,-2178.91,0.00027397,3]
[398405057,1765617052130,-500.0,0.00027397,3]
[398405058,1765617052140,-500.0,0.00027397,3]
[398405059,1765617052149,-1039.54,0.00027397,3]
[398405060,1765617052159,-1677.78,0.00027397,3]
[398405061,1765617052168,-500.0,0.00027397,3]
[398405062,1765617052177,-500.0,0.00027397,3]
[398405063,1765617052186,-500.0,0.00027397,3]
[398405064,1765617052195,-971.1,0.00027397,3]
[398405065,1765617052205,-500.0,0.00027397,15]
[398405066,1765617052215,-500.0,0.00027534,3]
[398405067,1765617052224,-500.0,0.00027671,3]
[398405068,1765617052234,-804.94,0.00027671,3]
[398405069,1765617052244,-500.0,0.00027671,3]
[398405070,1765617052253,-500.0,0.00027671,3]
[398405071,1765617052262,-1145.8,0.00027671,3]
[398405072,1765617052271,-897.33,0.00027671,3]
[398405073,1765617052280,-500.0,0.00027671,3]
[398405074,1765617052290,-500.0,0.00027671,3]
[398405075,1765617052299,-500.0,0.00027671,3]
[398405076,1765617052308,-500.0,0.00027671,3]
[398405077,1765617052318,-1068.39,0.00027671,3]
[398405078,1765617052327,-500.0,0.00027671,3]
[398405079,1765617052336,-1993.075405,0.00027671,3]
[398405080,1765617052345,-500.0,0.00027671,3]
[398405081,1765617052355,-500.0,0.00027671,3]
[398405082,1765617052363,-500.0,0.00027671,3]
[398405083,1765617052372,-500.0,0.00027671,3]
[398405084,1765617052382,-645.92,0.00027671,3]
[398405085,1765617052391,-500.0,0.00027671,3]
[398405086,1765617052400,-553.99,0.00027671,3]
[398405087,1765617052409,-500.0,0.00027671,3]
[398405088,1765617052418,-500.0,0.00027671,3]
[398405089,1765617052427,-500.0,0.00027671,3]
[398405090,1765617052437,-500.0,0.00027671,3]
[398405091,1765617052447,-500.0,0.00027671,3]
[398405092,1765617052456,-500.0,0.00027671,3]
[398405093,1765617052466,-500.0,0.00027671,3]
[398405094,1765617052475,-500.0,0.00027671,3]
[398405095,1765617052484,-660.68,0.00027671,3]
[398405096,1765617052493,-856.0,0.00027671,3]
[398405097,1765617052502,-500.0,0.00027671,3]
[398405098,1765617052511,-500.0,0.00027671,3]
[398405099,1765617052520,-500.0,0.00027671,3]
[398405100,1765617052529,-522.49911124,0.00027671,3]
[398405101,1765617052539,-790.78,0.00027671,3]
[398405102,1765617052548,-500.0,0.00027671,3]
[398405103,1765617052557,-500.0,0.00027671,3]
[398405104,1765617052566,-500.0,0.00027671,3]
[398405105,1765617052575,-500.0,0.00027671,3]
[398405106,1765617052584,-500.0,0.00027671,3]
[398405107,1765617052593,-512.89,0.00027671,3]
[398405108,1765617052603,-500.0,0.00027671,3]
[398405109,1765617052612,-500.0,0.00027671,3]
[398405110,1765617052621,-500.0,0.00027671,3]
[398405111,1765617052631,-500.0,0.00027671,3]
[398405112,1765617052640,-500.0,0.00027671,3]
[398405113,1765617052650,-500.0,0.00027671,3]
[398405114,1765617052659,-500.0,0.00027671,3]
[398405115,1765617052669,-417.90859978,0.00027671,3]
[398405116,1765617052679,-500.0,0.00027671,3]
[398405117,1765617052689,-500.0,0.00027671,3]
[398405118,1765617052698,-500.0,0.00027671,3]
[398405119,1765617052708,-639.5,0.00027671,3]
[398405120,1765617052717,-500.0,0.00027671,3]
[398405121,1765617052727,-500.0,0.00027671,3]
[398405122,1765617052736,-3077.68,0.00027671,2]
[398405123,1765617052745,-500.0,0.00027671,3]
[398405124,1765617052755,-593.39,0.00027671,3]
[398405125,1765617052765,-500.0,0.00027671,3]
[398405127,1765617052774,-2235.67,0.00027671,3]
[398405128,1765617052783,-500.0,0.00027671,3]
[398405129,1765617052792,-500.0,0.00027671,3]
[398405130,1765617052801,-1390.25,0.00027671,3]
[398405131,1765617052810,-500.0,0.00027671,3]
[398405132,1765617052819,-785.9,0.00027671,3]
[398405133,1765617052828,-500.0,0.00027671,3]
[398405134,1765617052836,-462.43541088,0.00027671,3]
[398405135,1765617052846,-500.0,0.00027671,3]
[398405136,1765617052855,-831.81,0.00027671,3]
[398405137,1765617052864,-1408.37,0.00027671,3]
[398405138,1765617052872,-500.0,0.00027671,3]
[398405139,1765617052882,-500.0,0.00027671,3]
[398405140,1765617052891,-1689.79,0.00027671,3]
[398405141,1765617052901,-500.0,0.00027671,3]
[398405142,1765617052911,-500.0,0.00027671,3]
[398405143,1765617052924,-500.0,0.00027671,3]
[398405144,1765617052933,-344.16347652,0.00027671,3]
[398405145,1765617052943,-500.76384823,0.00027671,3]
[398405146,1765617052952,-500.0,0.00027671,3]
[398405147,1765617052962,-500.0,0.00027671,3]
[398405148,1765617052971,-500.0,0.00027671,3]
[398405149,1765617052980,-2326.68,0.00027671,3]
[398405150,1765617052989,-824.67,0.00027671,3]
[398405151,1765617052999,-1057.47,0.00027671,3]
[398405152,1765617053009,-500.0,0.00027671,3]
[398405153,1765617053018,-500.0,0.00027671,3]
[398405154,1765617053027,-500.0,0.00027671,3]
[398405155,1765617053036,-500.0,0.00027671,3]
[398405156,1765617053046,-500.0,0.00027671,3]
[398405157,1765617053056,-500.0,0.00027671,3]
[398405158,1765617053065,-500.0,0.00027671,3]
[398405160,1765617053074,-500.0,0.00027671,3]
[398405161,1765617053084,-500.0,0.00027671,3]
[398405163,1765617053093,-500.0,0.00027671,3]
[398405165,1765617053102,-500.0,0.00027671,3]
[398405166,1765617053112,-500.0,0.00027671,3]
[398405167,1765617053121,-1473.21,0.00027671,3]
[398405168,1765617053131,-500.0,0.00027671,3]
[398405169,1765617053140,-500.0,0.00027671,3]
[398405170,1765617053150,-500.0,0.00027671,3]
[398405171,1765617053160,-500.0,0.00027671,3]
[398405172,1765617053170,-500.0,0.00027671,3]
[398405173,1765617053180,-500.0,0.00027671,3]
[398405174,1765617053190,-500.0,0.00027671,3]
[398405175,1765617053199,-500.0,0.00027671,3]
[398405176,1765617053209,-509.11213154,0.00027671,3]
[398405177,1765617053218,-500.0,0.00027671,3]
[398405178,1765617053228,-500.0,0.00027671,3]
[398405179,1765617053237,-500.0,0.00027671,3]
[398405180,1765617053247,-500.0,0.00027671,3]
[398405181,1765617053256,-500.0,0.00027671,3]
[398405182,1765617053265,-500.0,0.00027671,3]
[398405183,1765617053275,-500.0,0.00027671,3]
[398405184,1765617053284,-500.0,0.00027671,3]
[398405185,1765617053294,-846.23,0.00027671,3]
[398405186,1765617053303,-500.0,0.00027671,3]
[398405187,1765617053312,-500.0,0.00027671,3]
[398405188,1765617053321,-500.0,0.00027671,3]
[398405189,1765617053330,-500.0,0.00027671,3]
[398405190,1765617053339,-500.0,0.00027671,3]
[398405191,1765617053348,-583.61,0.00027671,3]
[398405193,1765617053482,-626.59,0.00027671,3]
[398405194,1765617053491,-500.0,0.00027671,3]
[398405195,1765617053501,-904.94,0.00027671,3]
[398405196,1765617053511,-500.0,0.00027671,3]
[398405197,1765617053520,-500.0,0.00027671,3]
[398405198,1765617053529,-500.0,0.00027671,3]
[398405199,1765617053539,-500.0,0.00027671,3]
[398405200,1765617053549,-500.0,0.00027671,3]
[398405201,1765617053559,-500.0,0.00027671,3]
[398405202,1765617053568,-500.0,0.00027671,3]
[398405203,1765617053578,-798.1,0.00027671,3]
[398405204,1765617053587,-500.0,0.00027671,3]
[398405205,1765617053597,-500.0,0.00027671,3]
[398405206,1765617053606,-1478.52,0.00027671,3]
[398405207,1765617053615,-1087.52,0.00027671,3]
[398405208,1765617053624,-500.0,0.00027671,3]
[398405209,1765617053634,-642.58818372,0.00027671,3]
[398405210,1765617053643,-500.0,0.00027671,3]
[398405211,1765617053653,-500.0,0.00027671,3]
[398405212,1765617053662,-500.0,0.00027671,3]
[398405213,1765617053672,-500.0,0.00027671,3]
[398405214,1765617053681,-500.0,0.00027671,3]
[398405215,1765617053691,-2523.4,0.00027671,3]
[398405216,1765617053701,-726.62,0.00027671,3]
[398405217,1765617053710,-500.0,0.00027671,3]
[398405218,1765617053719,-789.39,0.00027671,3]
[398405219,1765617053728,-500.0,0.00027671,3]
[398405220,1765617053737,-500.0,0.00027671,3]
[398405221,1765617053747,-577.02,0.00027671,3]
[398405222,1765617053756,-500.7534017,0.00027671,3]
[398405224,1765617053765,-857.63,0.00027671,3]
[398405226,1765617053775,-500.0,0.00027671,3]
[398405227,1765617053784,-500.0,0.00027671,3]
[398405228,1765617053794,-1260.15,0.00027671,3]
[398405230,1765617053803,-707.76,0.00027671,3]
[398405231,1765617053813,-500.0,0.00027671,3]
[398405232,1765617053822,-500.0,0.00027671,3]
[398405233,1765617053832,-500.0,0.00027671,3]
[398405234,1765617053842,-500.0,0.00027671,3]
[398405235,1765617053851,-500.0,0.00027671,3]
[398405236,1765617053860,-297.06945002,0.00027671,3]
[398405237,1765617053870,-500.0,0.00027671,3]
[398405238,1765617053880,-500.0,0.00027671,3]
[398405239,1765617053889,-533.47397382,0.00027671,3]
[398405240,1765617053899,-1622.32,0.00027671,3]
[398405241,1765617053909,-500.0,0.00027671,3]
[398405242,1765617053923,-500.0,0.00027671,3]
[398405243,1765617053932,-500.0,0.00027671,3]
[398405244,1765617053942,-500.0,0.00027671,3]
[398405245,1765617053951,-500.0,0.00027671,3]
[398405246,1765617053960,-372.44818724,0.00027671,3]
[398405247,1765617053970,-806.44,0.00027671,3]
[398405248,1765617053979,-500.0,0.00027671,3]
[398405249,1765617053988,-1000.0,0.00027671,2]
[398405250,1765617053997,-500.0,0.00027671,3]
[398405251,1765617054006,-1112.91,0.00027671,3]
[398405252,1765617054015,-500.0,0.00027671,3]
[398405253,1765617054024,-500.0,0.00027671,3]
[398405254,1765617054034,-500.0,0.00027671,2]
[398405255,1765617054044,-501.1107097,0.00027671,3]
[398405256,1765617054053,-896.63,0.00027671,3]
[398405257,1765617054062,-500.0,0.00027671,3]
[398405258,1765617054072,-500.0,0.00027671,3]
[398405259,1765617054081,-573.42273337,0.00027671,3]
[398405260,1765617054090,-500.0,0.00027671,3]
[398405261,1765617054100,-500.0,0.00027671,3]
[398405262,1765617054110,-500.0,0.00027671,3]
[398405263,1765617054119,-624.5,0.00027671,3]
[398405264,1765617054129,-500.0,0.00027671,3]
[398405265,1765617054139,-500.0,0.00027671,3]
[398405266,1765617054148,-500.0,0.00027671,3]
[398405267,1765617054158,-500.0,0.00027671,3]
[398405268,1765617054171,-654.65,0.00027671,3]
[398405269,1765617054180,-500.0,0.00027671,3]
[398405270,1765617054190,-276.45030054,0.00027671,3]
[398405271,1765617054199,-500.0,0.00027671,3]
[398405272,1765617054209,-500.0,0.00027671,3]
[398405273,1765617054219,-500.0,0.00027671,3]
[398405274,1765617054229,-500.0,0.00027671,3]
[398405275,1765617054238,-500.0,0.00027671,3]
[398405276,1765617054248,-500.0,0.00027671,3]
[398405277,1765617054257,-583.25,0.00027671,3]
[398405278,1765617054266,-500.0,0.00027671,3]
[398405279,1765617054276,-899.34,0.00027671,3]
[398405280,1765617054287,-500.0,0.00027671,3]
[398405281,1765617054298,-570.55736738,0.00027671,3]
[398405282,1765617054308,-1121.98,0.00027671,3]
[398405283,1765617054317,-500.0,0.00027671,3]
[398405284,1765617054327,-500.0,0.00027671,3]
[398405285,1765617054337,-595.67,0.00027671,3]
[398405286,1765617054347,-500.0,0.00027671,3]
[398405287,1765617054356,-547.85,0.00027671,3]
[398405288,1765617054366,-500.0,0.00027671,3]
[398405289,1765617054376,-500.0,0.00027671,3]
[398405290,1765617054386,-500.0,0.00027671,3]
[398405291,1765617054395,-892.15,0.00027671,3]
[398405292,1765617054404,-500.0,0.00027671,3]
[398405293,1765617054414,-500.0,0.00027671,3]
[398405294,1765617054424,-500.0,0.00027671,3]
[398405295,1765617054433,-500.0,0.00027671,3]
[398405296,1765617054443,-500.0,0.00027671,3]
[398405297,1765617054452,-500.0,0.00027671,3]
[398405298,1765617054462,-500.0,0.00027671,3]
[398405299,1765617054471,-500.0,0.00027671,3]
[398405300,1765617054480,-500.0,0.00027671,3]
[398405301,1765617054489,-500.0,0.00027671,3]
[398405302,1765617054499,-500.0,0.00027671,3]
[398405303,1765617054508,-500.0,0.00027671,3]
[398405304,1765617054516,-2540.36,0.00027671,3]
[398405305,1765617054526,-821.39,0.00027671,3]
[398405306,1765617054535,-500.0,0.00027671,3]
[398405307,1765617054545,-500.0,0.00027671,3]
[398405308,1765617054555,-785.87,0.00027671,3]
[398405309,1765617054564,-500.0,0.00027671,3]
[398405310,1765617054573,-504.14861444,0.00027671,3]
[398405311,1765617054583,-500.0,0.00027671,3]
[398405312,1765617054592,-500.0,0.00027671,3]
[398405313,1765617054602,-500.0,0.00027671,2]
[398405314,1765617054611,-500.0,0.00027671,3]
[398405315,1765617054620,-500.0,0.00027671,3]
[398405316,1765617054630,-1790.33,0.00027671,3]
[398405317,1765617054639,-500.0,0.00027671,3]
[398405318,1765617054648,-500.0,0.00027671,3]
[398405319,1765617054658,-500.0,0.00027671,3]
[398405320,1765617054668,-1160.64,0.00027671,3]
[398405321,1765617054678,-500.0,0.00027671,3]
[398405322,1765617054687,-500.0,0.00027671,3]
[398405323,1765617054696,-546.42,0.00027671,3]
[398405324,1765617054706,-2190.53,0.00027671,3]
[398405325,1765617054715,-1371.12,0.00027671,3]
[398405326,1765617054725,-1198.16,0.00027671,3]
[398405327,1765617054734,-500.0,0.00027671,3]
[398405328,1765617054744,-500.0,0.00027671,3]
[398405329,1765617054753,-500.0,0.00027671,3]
[398405330,1765617054762,-500.0,0.00027671,3]
[398405331,1765617054772,-1547.34,0.00027671,3]
[398405332,1765617054781,-500.0,0.00027671,3]
[398405333,1765617054791,-500.0,0.00027671,3]
[398405334,1765617054800,-500.0,0.00027671,3]
[398405335,1765617054810,-515.73062968,0.00027671,3]
[398405336,1765617054819,-500.0,0.00027671,3]
[398405337,1765617054828,-500.0,0.00027671,3]
[398405338,1765617054837,-2798.21,0.00027671,3]
[398405339,1765617054847,-500.0,0.00027671,3]
[398405340,1765617054856,-1546.27,0.00027671,3]
[398405341,1765617054865,-500.0,0.00027671,3]
[398405342,1765617054875,-500.0,0.00027671,3]
[398405343,1765617054885,-483.14497058,0.00027671,3]
[398405344,1765617054894,-500.0,0.00027671,3]